bitfinex/quotes_ETHUSD_20250126
["timestamp","ask_amount","ask_price","bid_price","bid_amount"]
[1737880049178,0.04907868,3332.8,3332.7,3.00057]
[1737880049371,0.7621,3333.2,3332.8,3.00046]
[1737880049797,0.7621,3333.6,3333.1,3.00016]
[1737880050002,0.7621,3333.6,3332.9,3.76598]
[1737880050003,1.35959692,3333.6,3332.9,3.76598]
[1737880050523,1.35959692,3333.6,3333.1,3.00017]
[1737880051411,1.35959692,3333.6,3332.3,3.0]
[1737880051412,0.03750082,3333.5,3333.0,3.00029]
[1737880051606,0.03750082,3333.5,3332.8,3.00039]
[1737880052009,0.55,3333.4,3332.7,3.00056]
[1737880052210,3.55013,3333.2,3332.5,3.00073]
[1737880052415,0.03750533,3333.1,3332.5,3.00073]
[1737880053703,0.7621,3333.0,3332.5,3.00073]
[1737880053901,0.7621,3333.0,3332.1,0.7656]
[1737880054114,0.04928485,3332.9,3332.7,3.00056]
[1737880054304,0.04928485,3332.9,3332.7,0.300056]
[1737880054492,0.55,3333.2,3332.5,3.00068]
[1737880054692,0.04933972,3333.1,3332.5,3.00068]
[1737880054915,0.04933972,3333.1,3332.7,3.00055]
[1737880055920,0.04933972,3333.1,3332.4,0.7656]
[1737880055921,0.04933972,3333.1,3333.0,3.0003]
[1737880056416,0.58750057,3333.4,3332.8,3.00046]
[1737880056583,4.34460275,3333.4,3332.8,3.00046]
[1737880056783,0.04942008,3333.3,3332.6,3.00063]
[1737880056984,0.7621,3333.2,3332.6,3.00063]
[1737880057390,0.04936521,3333.1,3332.6,3.00063]
[1737880058409,0.0868701,3333.1,3332.6,3.00063]
[1737880059219,0.04936521,3333.1,3332.6,3.00063]
[1737880063639,0.08687009,3333.1,3332.6,3.00063]
[1737880064833,0.04936521,3333.1,3332.6,3.00063]
[1737880065035,0.0868701,3333.1,3332.6,3.00063]
[1737880065740,0.7709,3333.0,3332.6,3.00063]
[1737880066102,0.04933966,3332.9,3332.6,3.00063]
[1737880067736,0.08684459,3332.9,3332.4,3.00082]
[1737880068103,0.7709,3332.8,3332.4,3.00082]
[1737880068338,0.04927715,3332.7,3332.4,3.00082]
[1737880068836,0.0492497,3332.6,3332.2,3.00099]
[1737880069004,0.7709,3332.5,3332.2,3.00099]
[1737880069203,0.04919481,3332.4,3332.2,3.00099]
[1737880070633,0.7709,3332.5,3332.2,3.00099]
[1737880070799,0.04919481,3332.4,3332.2,3.00099]
[1737880073742,0.04919481,3332.4,3332.3,3.00093]
[1737880075646,0.7709,3332.9,3332.3,4.358232]
[1737880075805,0.04922556,3332.8,3332.6,3.00065]
[1737880076407,0.04922556,3332.8,3332.3,1.357302]
[1737880076629,0.04922556,3332.8,3332.6,3.00065]
[1737880079131,0.7763,3332.7,3332.2,3.00099]
[1737880080405,0.04744643,3332.6,3332.2,3.00099]
[1737880080611,0.04744643,3332.6,3332.4,3.00082]
[1737880081445,0.04744643,3332.6,3332.2,3.77669]
[1737880081645,0.04744643,3332.6,3332.2,4.454476]
[1737880084352,0.04744643,3332.6,3332.2,0.677786]
[1737880084645,0.81380941,3332.5,3331.8,3.00136]
[1737880085075,0.04742213,3332.4,3331.6,9.03723]
[1737880085254,3.00094,3332.3,3331.6,9.03723]
[1737880085453,0.04736723,3332.2,3331.6,9.03723]
[1737880085751,0.04736723,3332.2,3331.6,6.0357]
[1737880085954,0.04736723,3332.2,3331.7,3.00146]
[1737880087582,0.7763,3332.1,3331.4,3.00171]
[1737880087742,0.7763,3332.1,3331.3,0.7757]
[1737880087743,3.77741,3332.1,3331.5,3.00163]
[1737880087941,0.04706031,3332.0,3331.5,3.00163]
[1737880090675,0.7763,3331.9,3331.3,3.00179]
[1737880090842,0.04697926,3331.8,3331.3,3.00179]
[1737880091767,0.04697926,3331.8,3331.4,3.00173]
[1737880095343,0.04697926,3331.8,3331.3,3.00181]
[1737880095561,0.04697926,3331.8,3331.3,3.902182]
[1737880095773,0.04697926,3331.8,3331.4,3.00171]
[1737880096979,0.04697926,3331.8,3331.5,3.00164]
[1737880097866,0.04697926,3331.8,3331.3,3.902152]
[1737880098652,0.04697926,3331.8,3331.3,3.00178]
[1737880099782,0.04697926,3331.8,3331.4,3.00174]
[1737880099986,0.04697926,3331.8,3331.6,3.00154]
[1737880103048,0.757,3332.0,3331.6,3.00154]
[1737880103470,0.04696666,3331.9,3331.6,3.00154]
[1737880103682,0.04696666,3331.9,3331.8,3.00138]
[1737880103880,0.757,3332.2,3331.8,3.00138]
[1737880104081,0.04702158,3332.1,3331.8,3.00138]
[1737880106651,0.04702158,3332.1,3331.7,3.82686]
[1737880109079,0.04702158,3332.1,3331.9,3.00126]
[1737880109788,0.757,3332.4,3331.9,3.00126]
[1737880110251,0.04711356,3332.3,3331.9,3.00126]
[1737880112974,0.04711356,3332.3,3332.2,3.00102]
[1737880113172,0.757,3332.6,3332.2,3.00102]
[1737880113380,0.0472475,3332.5,3332.2,3.00102]
[1737880114193,0.757,3332.8,3332.3,3.00085]
[1737880114478,0.04730239,3332.7,3332.3,3.00085]
[1737880114691,0.757,3332.8,3332.3,3.683577]
[1737880114989,0.04792643,3332.7,3332.3,3.683577]
[1737880115387,0.757,3332.8,3332.3,3.683577]
[1737880115575,0.04735399,3332.6,3332.3,3.683577]
[1737880115885,0.757,3332.8,3332.3,3.683577]
[1737880116085,0.04741071,3332.5,3332.3,3.683577]
[1737880116251,0.757,3332.8,3332.4,0.4508977]
[1737880116451,0.757,3332.8,3332.3,3.00085]
[1737880119295,0.757,3332.8,3332.4,3.00075]
[1737880120407,3.00026,3333.1,3332.4,3.00075]
[1737880120610,0.7694,3333.1,3332.6,3.00062]
[1737880121289,0.7694,3333.1,3332.8,3.00044]
[1737880121981,0.04659821,3333.0,3332.8,3.00044]
[1737880126195,1.35746229,3333.3,3332.8,3.00044]
[1737880126377,0.04665308,3333.2,3332.6,4.397066]
[1737880126585,3.04678308,3333.2,3332.6,3.600766]
[1737880127095,3.00031,3333.0,3332.4,3.00081]
[1737880127269,0.7694,3332.9,3332.4,3.00081]
[1737880127475,0.81601727,3332.9,3332.4,3.00077]
[1737880127675,0.81601727,3332.9,3332.6,3.00065]
[1737880128481,0.04661727,3332.9,3332.6,3.79695]
[1737880128679,0.7694,3333.1,3332.6,4.476722]
[1737880129082,0.04659882,3333.0,3332.6,4.476722]
[1737880129502,0.04659882,3333.0,3332.4,3.00077]
[1737880130209,3.04689882,3333.0,3332.4,3.00077]
[1737880131906,0.7694,3332.9,3332.4,3.00077]
[1737880132301,0.04666929,3332.8,3332.4,3.00077]
[1737880135385,0.04666929,3332.8,3332.5,3.00073]
[1737880136498,0.04666929,3332.8,3332.5,3.600893]
[1737880136814,0.04666929,3332.8,3332.6,3.00063]
[1737880137115,0.04666929,3332.8,3332.6,0.7963]
[1737880137295,0.04666929,3332.8,3332.7,3.00057]
[1737880137494,0.7694,3333.1,3332.9,3.00038]
[1737880138013,0.825,3333.4,3332.9,3.00038]
[1737880143736,3.82495,3333.4,3332.7,3.00057]
[1737880144012,0.04680902,3333.3,3332.7,3.7403463]
[1737880146203,0.04680902,3333.3,3332.7,3.00057]
[1737880146408,3.04685902,3333.3,3332.7,3.00057]
[1737880150939,0.04680902,3333.3,3332.6,0.7963]
[1737880151110,0.825,3333.1,3332.5,3.00073]
[1737880151434,0.04707941,3333.0,3332.5,3.00073]
[1737880154517,3.04737941,3333.0,3332.4,3.00081]
[1737880154816,3.04737941,3333.0,3332.4,6.00081]
[1737880155850,0.825,3332.9,3332.4,3.0]
[1737880156212,0.04665182,3332.8,3332.4,3.0]
[1737880157409,3.86351715,3332.7,3332.1,3.00107]
[1737880157648,0.04659694,3332.6,3331.9,11.2625]
[1737880157926,0.04659694,3332.6,3331.9,12.46832]
[1737880158335,3.04731694,3332.6,3331.9,9.46704]
[1737880158630,0.8057,3332.5,3331.9,8.26122]
[1737880158823,0.04654206,3332.4,3331.9,8.26122]
[1737880159031,0.04654206,3332.4,3331.9,3.00122]
[1737880159859,0.04654206,3332.4,3332.0,3.00119]
[1737880160041,0.04654206,3332.4,3331.8,0.7957]
[1737880160243,0.8057,3332.8,3332.3,3.00093]
[1737880160446,0.0469487,3332.7,3332.3,3.00093]
[1737880160760,0.8057,3332.8,3332.3,3.00093]
[1737880161060,0.0469487,3332.7,3332.3,3.00093]
[1737880161815,0.04659694,3332.6,3332.3,3.00093]
[1737880162041,0.8057,3332.6,3332.1,3.0011]
[1737880162255,0.04656951,3332.5,3331.9,3.00127]
[1737880164039,0.8057,3332.4,3331.9,3.00127]
[1737880164244,0.04651462,3332.3,3331.9,3.00127]
[1737880171873,0.04651462,3332.3,3332.0,3.00118]
[1737880177293,0.04651462,3332.3,3332.1,3.00109]
[1737880184192,3.04746462,3332.3,3331.7,3.00145]
[1737880184357,0.8077,3332.1,3331.7,3.00145]
[1737880184703,0.04616969,3332.0,3331.7,3.00145]
[1737880196334,0.04616969,3332.0,3331.8,3.00136]
[1737880196811,0.04552097,3331.9,3331.8,3.00136]
[1737880196975,0.55,3332.2,3331.8,3.00136]
[1737880197174,0.04557587,3332.1,3331.8,3.00136]
[1737880202044,0.04557587,3332.1,3331.5,3.76851]
[1737880202206,0.04557587,3332.1,3331.7,3.00146]
[1737880202538,0.7896,3332.0,3331.7,3.00146]
[1737880203036,0.7896,3332.0,3331.5,3.00161]
[1737880203238,0.7896,3331.8,3331.2,3.00183]
[1737880203536,0.7896,3331.6,3331.1,3.00198]
[1737880204108,0.037522,3331.5,3330.8,3.00222]
[1737880204300,0.7896,3331.3,3330.9,3.00217]
[1737880205115,0.7896,3331.3,3331.0,3.00209]
[1737880205640,0.7896,3331.9,3331.3,3.00181]
[1737880206033,0.7896,3331.9,3331.5,3.00161]
[1737880206543,0.7896,3331.9,3331.6,3.00154]
[1737880206706,0.7896,3331.9,3331.3,3.00182]
[1737880206905,0.7896,3331.9,3331.7,3.00145]
[1737880207132,0.83517587,3332.1,3331.7,3.00145]
[1737880207532,0.04557587,3332.1,3331.8,3.00136]
[1737880208550,0.04557587,3332.1,3331.6,3.00156]
[1737880209248,0.04557587,3332.1,3331.8,3.0013]
[1737880209447,0.04557587,3332.1,3331.9,3.00128]
[1737880214829,0.04557587,3332.1,3331.8,0.600276]
[1737880215180,0.04557587,3332.1,3331.7,3.00146]
[1737880215974,0.7896,3332.0,3331.7,3.00146]
[1737880217866,0.04542829,3331.9,3331.7,3.00146]
[1737880218766,0.04542829,3331.9,3331.5,3.76852]
[1737880218973,0.04542829,3331.9,3331.5,3.00162]
[1737880222157,0.04542829,3331.9,3331.3,3.00181]
[1737880222363,0.7871,3331.7,3331.3,3.00181]
[1737880222737,0.04529747,3331.6,3331.3,3.00181]
[1737880223276,0.04529747,3331.6,3331.2,3.0]
[1737880224067,0.04529747,3331.6,3331.1,3.00198]
[1737880224252,0.7871,3331.5,3331.1,3.00198]
[1737880224769,0.04518133,3331.4,3331.1,3.00198]
[1737880232212,0.04518133,3331.4,3331.2,3.0019]
[1737880232491,0.04518133,3331.4,3331.3,3.79713]
[1737880232847,6.0971,3332.0,3331.6,3.0015]
[1737880233051,0.0446745,3331.9,3331.6,3.0015]
[1737880234885,0.0446745,3331.9,3331.4,3.00172]
[1737880236897,0.7871,3331.8,3331.2,3.0019]
[1737880237256,0.0446196,3331.7,3331.2,3.0019]
[1737880238392,0.08213966,3331.7,3331.2,3.0019]
[1737880238931,0.08213966,3331.7,3331.1,3.00198]
[1737880240223,0.7881,3331.6,3331.1,3.00198]
[1737880240408,0.04455702,3331.5,3331.1,3.00198]
[1737880245354,0.7881,3331.4,3330.8,3.00225]
[1737880245634,0.04447237,3331.3,3330.8,3.00225]
[1737880245994,0.04447237,3331.3,3330.8,3.62449369]
[1737880246228,0.04447237,3331.3,3330.8,0.62224369]
[1737880246533,0.04447237,3331.3,3331.0,3.00203]
[1737880248137,0.04447237,3331.3,3331.2,3.00192]
[1737880248439,0.04447237,3331.3,3331.2,3.82272]
[1737880248599,0.7881,3331.8,3331.2,3.82272]
[1737880248800,0.04454393,3331.7,3331.3,3.00175]
[1737880249040,0.7881,3331.8,3331.3,3.00175]
[1737880249236,0.04454393,3331.7,3331.3,3.12592215]
[1737880249453,0.7881,3331.8,3331.3,3.12592215]
[1737880249635,0.04454393,3331.7,3331.3,3.12592215]
[1737880249799,0.7881,3331.8,3331.3,3.12592215]
[1737880250000,0.04454393,3331.7,3331.3,3.12592215]
[1737880250203,0.7881,3331.8,3331.3,3.12592215]
[1737880250428,0.04452607,3331.7,3331.3,3.12592215]
[1737880250635,0.7881,3331.8,3331.5,3.00164]
[1737880250904,0.7881,3332.1,3331.7,3.0014]
[1737880251197,0.7881,3332.3,3331.9,3.00128]
[1737880252350,0.7881,3332.3,3332.0,0.12417215]
[1737880252497,0.7881,3332.6,3332.1,3.82182]
[1737880252848,0.77763416,3332.8,3332.2,3.001]
[1737880253045,0.7881,3332.9,3332.4,3.00083]
[1737880253536,0.7881,3332.9,3332.2,3.00099]
[1737880253715,0.7881,3332.9,3332.4,3.00075]
[1737880254111,0.7881,3332.9,3332.5,0.12417215]
[1737880254301,0.04493255,3332.8,3332.5,3.12488215]
[1737880255550,0.04493255,3332.8,3332.5,0.12417215]
[1737880256040,0.04493255,3332.8,3332.6,0.12417215]
[1737880257517,0.04493255,3332.8,3332.5,0.12417215]
[1737880258956,3.43250236,3332.8,3332.5,0.12417215]
[1737880259121,4.35496,3332.6,3332.5,0.12417215]
[1737880259308,3.00084,3332.4,3332.3,0.12417215]
[1737880259821,0.04499879,3332.4,3332.3,0.12417215]
[1737880260034,0.8043,3332.9,3332.3,0.12417215]
[1737880260275,0.04507284,3332.8,3332.3,0.12417215]
[1737880260428,0.04507284,3332.8,3332.3,3.51739437]
[1737880262251,0.04507284,3332.8,3332.3,3.39322222]
[1737880264363,0.04507284,3332.8,3332.3,3.0009]
[1737880265338,0.04507284,3332.8,3332.2,0.7981]
[1737880265740,3.08312956,3332.8,3332.2,0.7981]
[1737880267861,0.04507284,3332.8,3332.2,3.7991]
[1737880268067,0.04507284,3332.8,3332.3,3.00092]
[1737880270330,0.04507284,3332.8,3332.7,0.7981]
[1737880270672,2.00841541,3333.2,3332.8,3.00046]
[1737880270871,0.04530602,3333.1,3332.8,3.00046]
[1737880276084,0.04530602,3333.1,3332.6,3.00064]
[1737880276290,0.04530602,3333.1,3332.1,3.79912]
[1737880276291,0.8043,3333.0,3332.1,3.79912]
[1737880276456,3.04582307,3332.9,3332.3,3.00089]
[1737880277466,0.04542307,3332.9,3332.6,3.00058]
[1737880277669,1.20411541,3333.2,3332.6,3.00058]
[1737880277851,1.20411541,3333.2,3332.4,3.00084]
[1737880277852,3.7522,3333.0,3332.4,3.00084]
[1737880278058,0.04545004,3332.9,3332.7,0.12377494]
[1737880279285,0.04545004,3332.9,3332.4,3.00084]
[1737880280961,0.04545004,3332.9,3332.5,0.12387637]
[1737880282689,0.04545004,3332.9,3332.6,0.12387637]
[1737880283998,0.04545004,3332.9,3332.7,0.12387637]
[1737880284909,0.04545004,3332.9,3332.7,3.12436637]
[1737880285062,0.04545004,3332.9,3332.7,3.73687401]
[1737880285263,1.20411541,3333.2,3332.7,3.73687401]
[1737880285466,0.0455406,3333.1,3332.7,3.12436637]
[1737880285808,0.0455406,3333.1,3332.8,3.12431637]
[1737880286482,0.0455406,3333.1,3332.9,3.00038]
[1737880287661,0.0455406,3333.1,3333.0,0.12387637]
[1737880294967,0.0455406,3333.1,3333.0,3.12417637]
[1737880295190,0.0455406,3333.1,3333.0,3.73664101]
[1737880295393,0.0455406,3333.1,3333.0,4.52104101]
[1737880296373,0.7519,3333.6,3333.0,4.52104101]
[1737880296892,0.04565797,3333.5,3333.0,3.90857637]
[1737880297764,3.04550797,3333.5,3333.1,0.12387637]
[1737880298204,2.99996,3333.4,3333.1,0.12387637]
[1737880298566,0.04507434,3333.3,3333.1,0.12387637]
[1737880299006,0.08257409,3333.3,3333.2,0.12387637]
[1737880299202,3.04518434,3333.3,3333.2,0.12387637]
[1737880299698,3.85158434,3333.3,3333.2,0.12387637]
[1737880300608,3.00014,3333.2,3332.5,3.00074]
[1737880300795,3.00014,3333.2,3332.6,0.382564]
[1737880300974,0.04451852,3333.1,3332.6,0.382564]
[1737880301697,3.00055,3332.8,3332.2,3.0]
[1737880302000,3.04497879,3332.7,3332.2,3.0]
[1737880303795,0.04440879,3332.7,3332.2,3.0]
[1737880304302,0.04392284,3332.6,3332.2,3.0]
[1737880304480,3.00048,3332.8,3332.3,0.682598]
[1737880304686,0.04395027,3332.7,3332.3,0.682598]
[1737880304891,3.00048,3332.8,3332.3,0.682598]
[1737880305085,0.04395027,3332.7,3332.3,0.682598]
[1737880305292,3.00048,3332.8,3332.3,0.682598]
[1737880305477,0.04375511,3332.7,3332.3,0.682598]
[1737880305678,3.00048,3332.8,3332.3,0.682598]
[1737880305877,0.04375511,3332.7,3332.3,0.682598]
[1737880306110,3.00048,3332.8,3332.3,0.682598]
[1737880306411,0.04375511,3332.7,3332.3,0.682598]
[1737880306711,3.00048,3332.8,3332.3,0.682598]
[1737880306910,0.04365508,3332.7,3332.3,0.682598]
[1737880307111,3.00048,3332.8,3332.3,0.682598]
[1737880307280,0.04365508,3332.7,3332.3,0.682598]
[1737880307610,3.77509,3332.7,3332.1,0.8249]
[1737880307910,0.04362765,3332.6,3332.0,3.00119]
[1737880308074,3.00076,3332.5,3331.9,0.789]
[1737880308274,0.7745,3332.3,3331.6,3.79055]
[1737880308507,0.08104787,3332.2,3331.6,3.79055]
[1737880308716,0.0435332,3332.2,3331.7,3.379055]
[1737880308879,0.08104748,3332.2,3331.7,3.379055]
[1737880309311,0.0435332,3332.2,3331.7,3.379055]
[1737880310110,0.08104749,3332.2,3331.7,3.379055]
[1737880310481,0.08104749,3332.2,3331.5,3.0]
[1737880310681,0.08104749,3332.2,3331.7,3.0]
[1737880311576,0.08104749,3332.2,3331.7,3.00146]
[1737880312731,3.08213749,3332.2,3331.4,3.0017]
[1737880312942,0.7745,3332.1,3331.5,3.00164]
[1737880313236,0.03751677,3332.0,3331.5,3.00164]
[1737880313609,0.04318297,3331.9,3331.3,3.00177]
[1737880314041,0.04318297,3331.9,3331.2,3.79089]
[1737880314214,0.7745,3331.8,3331.2,3.79089]
[1737880314415,0.85517467,3331.8,3331.2,3.79089]
[1737880314622,0.85517467,3331.8,3331.0,3.00209]
[1737880314623,3.00148,3331.7,3331.0,3.00209]
[1737880315040,0.04310061,3331.6,3331.1,3.002]
[1737880315542,0.81202171,3331.8,3331.1,3.002]
[1737880315862,0.04303996,3331.5,3331.3,3.00176]
[1737880316006,0.7745,3331.8,3331.3,3.00179]
[1737880316203,0.0430125,3331.4,3331.3,3.00179]
[1737880316442,0.7745,3331.8,3331.3,3.00179]
[1737880316619,0.0430125,3331.4,3331.1,3.002]
[1737880316813,3.81348171,3331.8,3331.1,3.002]
[1737880317017,0.04298504,3331.3,3331.1,3.002]
[1737880317237,3.77596,3331.8,3331.1,3.002]
[1737880317438,0.04295759,3331.2,3331.1,3.002]
[1737880317641,3.81348171,3331.8,3331.2,3.0019]
[1737880317841,3.81348171,3331.8,3331.0,3.0]
[1737880317842,0.81202171,3331.8,3331.0,3.0]
[1737880318016,3.00147,3331.7,3331.0,6.00205]
[1737880318704,0.7745,3331.8,3331.3,3.00181]
[1737880321232,0.7745,3331.8,3331.1,3.00199]
[1737880321436,3.77589,3331.8,3331.1,3.00199]
[1737880321753,3.77589,3331.8,3331.2,3.00189]
[1737880326750,0.7745,3331.8,3331.3,3.00178]
[1737880326956,0.7745,3331.8,3331.4,3.0017]
[1737880328623,0.81201946,3331.8,3331.2,3.00189]
[1737880328827,3.81341946,3331.8,3331.2,3.00189]
[1737880329125,0.04321665,3331.7,3331.2,3.00189]
[1737880332830,0.04321665,3331.7,3331.3,3.00182]
[1737880333337,0.04313063,3331.6,3331.3,3.00182]
[1737880333533,0.81201949,3331.8,3331.1,3.00201]
[1737880333739,0.04315808,3331.7,3331.1,3.00201]
[1737880334874,0.04315808,3331.7,3331.2,3.0019]
[1737880337165,0.752,3331.6,3331.0,3.00204]
[1737880337366,0.79511233,3331.6,3331.0,3.00204]
[1737880341174,0.79511233,3331.6,3331.0,3.602461]
[1737880341734,0.79511233,3331.6,3331.1,3.00193]
[1737880342277,0.79511233,3331.6,3331.2,3.00191]
[1737880342764,0.04311233,3331.6,3331.3,3.00182]
[1737880342973,0.8213,3331.8,3331.3,3.00182]
[1737880343174,0.04313764,3331.7,3331.3,3.00182]
[1737880343543,0.8213,3331.8,3331.3,3.00182]
[1737880343749,0.04313764,3331.7,3331.3,3.00182]
[1737880343950,0.8213,3331.8,3331.3,3.00182]
[1737880344168,1.503682,3331.8,3331.1,3.002]
[1737880344335,0.04313764,3331.7,3331.1,3.002]
[1737880344675,0.04313764,3331.7,3331.2,3.0019]
[1737880345235,0.04313764,3331.7,3331.1,3.002]
[1737880345236,0.04313764,3331.7,3331.3,3.00176]
[1737880345473,0.8213,3331.8,3331.3,3.00176]
[1737880345650,0.04311019,3331.6,3331.3,3.00176]
[1737880345849,0.8213,3331.8,3331.3,3.00176]
[1737880346360,0.04285644,3331.7,3331.3,3.00176]
[1737880346579,0.8213,3331.8,3331.3,3.00176]
[1737880346872,0.04285644,3331.7,3331.3,3.00176]
[1737880347074,0.8213,3331.8,3331.3,3.00176]
[1737880347278,0.04282899,3331.6,3331.3,3.00176]
[1737880347439,0.04285644,3331.7,3331.3,3.00176]
[1737880347781,0.8213,3331.8,3331.4,3.00174]
[1737880347939,0.04285644,3331.7,3331.5,3.00156]
[1737880348275,0.8213,3331.8,3331.5,3.00156]
[1737880348874,0.04285644,3331.7,3331.5,3.00156]
[1737880349086,0.8213,3331.8,3331.5,3.00156]
[1737880349239,0.04282899,3331.6,3331.5,3.00156]
[1737880349440,0.8213,3331.8,3331.5,3.00156]
[1737880349639,0.04282899,3331.6,3331.5,3.00156]
[1737880350171,0.8213,3331.8,3331.5,3.00156]
[1737880350405,0.04285644,3331.7,3331.5,3.00156]
[1737880350697,0.8213,3331.8,3331.5,3.00156]
[1737880351195,0.04285644,3331.7,3331.5,3.00156]
[1737880351557,0.8213,3331.8,3331.5,3.00156]
[1737880351759,0.04285644,3331.7,3331.5,3.00156]
[1737880351999,0.8213,3331.8,3331.5,3.00156]
[1737880352197,0.04282899,3331.6,3331.3,3.82256]
[1737880352398,0.8213,3331.8,3331.3,3.82256]
[1737880352593,0.04280154,3331.5,3331.3,3.82256]
[1737880352787,0.8213,3331.8,3331.3,3.82256]
[1737880352982,0.04277409,3331.4,3331.3,3.82256]
[1737880353188,0.8213,3331.8,3331.3,4.505015]
[1737880353397,0.04277409,3331.4,3331.3,3.82256]
[1737880353565,0.8213,3331.8,3331.3,3.00176]
[1737880353767,0.04285644,3331.7,3331.3,3.00176]
[1737880353968,0.8213,3331.8,3331.3,3.00176]
[1737880354167,0.04285644,3331.7,3331.3,3.00176]
[1737880354382,0.8213,3331.8,3331.3,3.00176]
[1737880354595,0.04285644,3331.7,3331.3,3.00176]
[1737880354793,3.82269,3331.8,3331.1,3.00199]
[1737880355003,0.04282899,3331.6,3330.9,6.00429]
[1737880355185,3.86556097,3331.7,3331.0,3.00209]
[1737880355710,3.03911211,3331.6,3330.9,3.00212]
[1737880356093,0.04266374,3331.5,3330.9,3.00212]
[1737880356465,0.04266374,3331.5,3331.0,3.00206]
[1737880356878,1.98919725,3331.4,3330.7,3.82314]
[1737880357083,0.0375244,3331.3,3330.7,3.82314]
[1737880357508,0.04259392,3331.2,3330.7,3.82314]
[1737880360726,0.04259392,3331.2,3330.7,3.00234]
[1737880360884,0.7962,3331.1,3330.7,3.00234]
[1737880361223,0.04247944,3331.0,3330.7,3.00234]
[1737880362229,0.04247944,3331.0,3330.5,3.77163]
[1737880362416,0.04247944,3331.0,3330.5,3.00253]
[1737880364544,0.04247944,3331.0,3330.7,3.00236]
[1737880364905,0.04247944,3331.0,3330.8,3.00221]
[1737880365091,0.04247944,3331.0,3330.9,3.00219]
[1737880365420,0.04205399,3331.0,3330.9,3.00219]
[1737880365629,0.7962,3331.3,3330.7,3.00236]
[1737880365937,0.04205399,3331.0,3330.7,3.00236]
[1737880366133,0.7962,3331.3,3330.7,3.00236]
[1737880366295,1.29653831,3331.3,3330.7,3.00236]
[1737880366499,0.04210891,3331.2,3330.7,3.00236]
[1737880374950,0.04210891,3331.2,3330.5,3.77162]
[1737880375252,0.04210891,3331.2,3330.8,3.00227]
[1737880375431,0.7962,3331.3,3330.8,3.00227]
[1737880375606,0.04205078,3331.1,3330.8,3.00227]
[1737880375808,0.7962,3331.3,3330.8,3.00227]
[1737880376016,0.04207824,3331.2,3330.8,3.00227]
[1737880376315,0.8337259,3331.3,3330.6,3.0024]
[1737880376655,0.04207824,3331.2,3330.6,3.0024]
[1737880377064,0.03752706,3331.1,3330.6,3.0024]
[1737880377218,0.07957784,3331.1,3330.6,3.30421768]
[1737880377616,0.04205078,3331.1,3330.6,3.30421768]
[1737880377932,0.7896,3331.0,3330.5,3.00252]
[1737880378308,0.04199586,3330.9,3330.5,3.00252]
[1737880379448,0.04199586,3330.9,3330.6,3.00239]
[1737880381151,0.04199586,3330.9,3330.4,3.00264]
[1737880381315,0.04199586,3330.9,3330.6,3.00239]
[1737880383250,0.04199586,3330.9,3330.4,3.00264]
[1737880383251,0.04199586,3330.9,3330.5,3.00253]
[1737880386849,0.04199586,3330.9,3330.2,0.8323]
[1737880387043,0.04199586,3330.9,3330.6,3.00246]
[1737880391132,0.04199586,3330.9,3330.8,3.00228]
[1737880391489,0.7896,3331.2,3331.0,3.00209]
[1737880392335,0.7896,3331.5,3331.0,3.00209]
[1737880392534,0.7896,3331.5,3331.2,3.00185]
[1737880394098,0.7896,3331.5,3331.0,3.00209]
[1737880394321,0.7896,3331.4,3331.0,3.00209]
[1737880394517,0.82712213,3331.3,3330.8,3.00225]
[1737880394732,0.7896,3331.3,3330.8,3.00225]
[1737880395040,0.03752529,3331.2,3330.6,3.00244]
[1737880395658,0.7896,3331.3,3330.8,3.00228]
[1737880397161,0.7896,3331.3,3330.9,3.00218]
[1737880398561,0.7896,3331.3,3330.7,3.00231]
[1737880398764,0.7868,3331.0,3330.4,6.00263]
[1737880400549,0.7868,3331.0,3330.5,0.12391658]
[1737880401170,3.7889,3331.0,3330.5,0.12391658]
[1737880401353,1.16789725,3330.7,3330.5,0.12391658]
[1737880401561,0.19546973,3330.6,3330.5,0.12391658]
[1737880401754,0.98226973,3330.6,3330.0,3.00299]
[1737880401963,0.7868,3330.6,3330.0,3.00299]
[1737880402477,0.03753239,3330.5,3330.0,3.00299]
[1737880402637,1.20542964,3330.5,3330.0,3.00299]
[1737880402841,1.20542964,3330.5,3330.0,2.95299]
[1737880404345,1.20542964,3330.5,3329.8,3.00316]
[1737880404346,1.16789725,3330.3,3329.5,3.1734297]
[1737880404559,0.7868,3330.0,3329.5,3.1734297]
[1737880404975,0.04126147,3329.9,3329.5,3.1734297]
[1737880405579,0.04126147,3329.9,3329.5,0.1699797]
[1737880405748,0.7868,3329.6,3329.5,0.1699797]
[1737880406143,0.8278462,3329.6,3329.5,0.1699797]
[1737880407609,1.0649653,3329.6,3329.5,0.1699797]
[1737880407811,1.0649653,3329.6,3329.3,0.00120961]
[1737880407812,7.34034,3329.4,3329.3,0.00120961]
[1737880408109,6.83100343,3329.4,3329.3,0.00120961]
[1737880408407,3.83100343,3329.4,3329.3,0.00120961]
[1737880408774,0.82746343,3329.4,3329.3,0.00120961]
[1737880409999,0.04066343,3329.4,3329.3,3.00483961]
[1737880410197,0.04066343,3329.4,3329.3,3.38382357]
[1737880410397,3.00264,3330.4,3329.3,3.38382357]
[1737880410398,0.7868,3330.2,3329.6,3.00328]
[1737880410591,0.7868,3330.2,3329.8,3.00315]
[1737880410797,0.03749768,3330.1,3329.8,3.00315]
[1737880411536,0.03749768,3330.1,3329.7,0.785]
[1737880413226,0.03749768,3330.1,3329.8,3.00317]
[1737880413730,0.60657396,3330.4,3329.8,3.00317]
[1737880414028,0.0376417,3330.0,3329.8,3.00317]
[1737880414229,0.03761679,3329.9,3329.8,3.682315]
[1737880414474,0.60657396,3330.4,3329.8,3.682315]
[1737880414674,0.03761679,3329.9,3329.8,3.00317]
[1737880414961,0.60657396,3330.4,3329.9,3.00306]
[1737880417185,0.60657396,3330.4,3329.9,3.00303]
[1737880418388,3.0023,3330.8,3329.8,3.00317]
[1737880418685,3.7524,3330.8,3330.0,3.00293]
[1737880418974,0.61048204,3330.7,3330.0,3.00293]